lending/lending_fUSD_20240112
["ID","MTS","AMOUNT","RATE_DAILY","PERIOD"]
[311357761,1705067483261,-500.0,0.00023956,2]
[311357762,1705067483271,-500.0,0.00023956,2]
[311357763,1705067483281,-500.0,0.00023956,2]
[311357764,1705067483291,-500.0,0.00023956,2]
[311357765,1705067483301,-500.0,0.00023956,2]
[311357766,1705067483310,-500.0,0.00023956,2]
[311357767,1705067483320,-500.0,0.00023956,2]
[311357768,1705067483330,-500.0,0.00023956,2]
[311357769,1705067483339,-500.0,0.00023956,2]
[311357770,1705067483349,-500.0,0.00023956,2]
[311357771,1705067483359,-500.0,0.00023956,2]
[311357772,1705067483369,-500.0,0.00023956,2]
[311357773,1705067483379,-500.0,0.00023956,2]
[311357774,1705067483389,-500.0,0.00023956,2]
[311357775,1705067483399,-500.0,0.00023956,2]
[311357776,1705067483409,-532.55,0.00023956,2]
[311357777,1705067483419,-500.0,0.00023956,2]
[311357778,1705067483428,-500.0,0.00023956,2]
[311357779,1705067483438,-571.03,0.00023956,2]
[311357780,1705067483447,-500.0,0.00023956,2]
[311357781,1705067483457,-500.0,0.00023956,2]
[311357782,1705067483466,-500.0,0.00023956,2]
[311357783,1705067483476,-500.0,0.00023956,2]
[311357784,1705067483486,-500.0,0.00023956,2]
[311357785,1705067483496,-500.0,0.00023956,2]
[311357786,1705067483506,-500.0,0.00023956,2]
[311357787,1705067483515,-500.0,0.00023956,2]
[311357788,1705067483526,-500.0,0.00023956,2]
[311357789,1705067483538,-500.0,0.00023956,2]
[311357790,1705067483547,-250.0,0.00023956,2]
[311357791,1705067483558,-500.0,0.00023956,2]
[311357792,1705067483567,-500.0,0.00023956,2]
[311357793,1705067483577,-500.0,0.00023956,2]
[311357794,1705067483587,-500.0,0.00023956,2]
[311357795,1705067483596,-500.0,0.00023956,2]
[311357796,1705067483606,-500.0,0.00023956,2]
[311357797,1705067483616,-500.0,0.00023956,2]
[311357798,1705067483626,-500.0,0.00023956,2]
[311357799,1705067483635,-500.0,0.00023956,2]
[311357800,1705067483645,-500.0,0.00023956,2]
[311357801,1705067483654,-500.0,0.00023956,2]
[311357802,1705067483664,-500.0,0.00023956,2]
[311357803,1705067483674,-500.0,0.00023956,2]
[311357804,1705067483683,-500.0,0.00023956,2]
[311357805,1705067483693,-500.0,0.00023956,2]
[311357806,1705067483703,-617.06,0.00023956,2]
[311357807,1705067483712,-500.0,0.00023956,2]
[311357808,1705067483722,-500.03,0.00023956,2]
[311357809,1705067483732,-500.0,0.00023956,2]
[311357810,1705067483741,-900.49,0.00023956,2]
[311357811,1705067483751,-500.0,0.00023956,2]
[311357812,1705067483761,-500.0,0.00023956,2]
[311357813,1705067483771,-500.0,0.00023956,2]
[311357814,1705067483781,-500.0,0.00023956,2]
[311357815,1705067483792,-500.0,0.00023956,2]
[311357816,1705067483802,-500.0,0.00023956,2]
[311357817,1705067483812,-500.0,0.00023956,2]
[311357818,1705067483821,-580.22,0.00023956,2]
[311357819,1705067483831,-500.0,0.00023956,2]
[311357820,1705067483842,-500.0,0.00023956,2]
[311357821,1705067483852,-500.0,0.00023956,2]
[311357822,1705067483862,-500.0,0.00023956,2]
[311357823,1705067483872,-500.0,0.00023956,2]
[311357824,1705067483882,-500.0,0.00023956,2]
[311357825,1705067483893,-500.0,0.00023956,2]
[311357826,1705067483903,-500.0,0.00023956,2]
[311357827,1705067483912,-500.0,0.00023956,2]
[311357828,1705067483922,-500.0,0.00023956,2]
[311357829,1705067483932,-500.0,0.00023956,2]
[311357830,1705067483942,-500.0,0.00023956,2]
[311357831,1705067483952,-500.0,0.00023956,2]
[311357832,1705067483961,-988.76,0.00023956,2]
[311357833,1705067483972,-500.0,0.00023956,2]
[311357834,1705067483982,-500.0,0.00023956,2]
[311357835,1705067483992,-500.0,0.00023956,2]
[311357836,1705067484002,-500.0,0.00023956,2]
[311357837,1705067484011,-500.0,0.00023956,2]
[311357838,1705067484022,-536.8,0.00023956,2]
[311357839,1705067484031,-500.0,0.00023956,2]
[311357840,1705067484044,-676.74,0.00023956,2]
[311357841,1705067484053,-594.36,0.00023956,2]
[311357842,1705067484063,-500.0,0.00023956,2]
[311357843,1705067484074,-500.0,0.00023956,2]
[311357844,1705067484083,-500.0,0.00023956,2]
[311357845,1705067484093,-500.0,0.00023956,2]
[311357846,1705067484103,-572.67,0.00023956,2]
[311357847,1705067484112,-500.0,0.00023956,2]
[311357848,1705067484122,-500.0,0.00023956,2]
[311357849,1705067484133,-169.43769723,0.00023956,2]
[311357850,1705067484143,-543.4,0.00023956,2]
[311357851,1705067484153,-500.0,0.00023956,2]
[311357852,1705067484163,-500.0,0.00023956,2]
[311357853,1705067484173,-686.86,0.00023956,2]
[311357854,1705067484183,-500.0,0.00023956,2]
[311357855,1705067484193,-500.0,0.00023956,2]
[311357856,1705067484203,-500.0,0.00023956,2]
[311357857,1705067484212,-513.03,0.00023956,2]
[311357858,1705067484223,-500.0,0.00023956,2]
[311357859,1705067484234,-717.1,0.00023956,2]
[311357860,1705067484244,-500.0,0.00023956,2]
[311357861,1705067484254,-915.79,0.00023956,2]
[311357862,1705067484263,-500.0,0.00023956,2]
[311357863,1705067484274,-628.12,0.00023956,2]
[311357864,1705067484287,-500.0,0.00023956,2]
[311357865,1705067484303,-500.0,0.00023956,2]
[311357866,1705067484320,-578.39,0.00023956,2]
[311357867,1705067484332,-500.0,0.00023956,2]
[311357868,1705067484343,-865.61,0.00023956,2]
[311357869,1705067484354,-500.0,0.00023956,2]
[311357870,1705067484365,-500.0,0.00023956,2]
[311357871,1705067484376,-500.0,0.00023956,2]
[311357872,1705067484387,-504.98,0.00023956,2]
[311357873,1705067484398,-500.0,0.00023956,2]
[311357874,1705067484409,-785.43,0.00023956,2]
[311357875,1705067484420,-500.0,0.00023956,2]
[311357876,1705067484431,-500.0,0.00023956,2]
[311357877,1705067484442,-500.0,0.00023956,2]
[311357878,1705067484453,-500.0,0.00023956,2]
[311357879,1705067484464,-500.0,0.00023956,2]
[311357880,1705067484474,-802.88,0.00023956,2]
[311357881,1705067484484,-592.6,0.00023956,2]
[311357882,1705067484494,-500.0,0.00023956,2]
[311357883,1705067484504,-500.0,0.00023956,2]
[311357884,1705067484514,-1046.21,0.00023956,2]
[311357885,1705067484524,-500.0,0.00023956,2]
[311357886,1705067484537,-1019.63,0.00023956,2]
[311357887,1705067484547,-501.58,0.00023956,2]
[311357888,1705067484558,-500.0,0.00023956,2]
[311357889,1705067484568,-500.0,0.00023956,2]
[311357890,1705067484579,-1762.58,0.00023956,2]
[311357891,1705067484588,-500.0,0.00023956,2]
[311357892,1705067484598,-500.0,0.00023956,2]
[311357893,1705067484608,-742.28,0.00023956,2]
[311357894,1705067484618,-500.0,0.00023956,2]
[311357895,1705067484627,-1000.0,0.00023956,2]
[311357896,1705067484637,-500.0,0.00023956,2]
[311357897,1705067484648,-500.0,0.00023956,2]
[311357898,1705067484658,-551.57,0.00023956,2]
[311357899,1705067484668,-544.63,0.00023956,2]
[311357900,1705067484678,-500.0,0.00023956,2]
[311357901,1705067484688,-500.0,0.00023956,2]
[311357902,1705067484698,-500.0,0.00023956,2]
[311357903,1705067484707,-500.0,0.00023956,2]
[311357904,1705067484718,-500.0,0.00023956,2]
[311357905,1705067484727,-511.99,0.00023956,2]
[311357906,1705067484737,-500.0,0.00023956,2]
[311357907,1705067484747,-500.0,0.00023956,2]
[311357908,1705067484758,-500.0,0.00023956,2]
[311357909,1705067484768,-500.0,0.00023956,2]
[311357910,1705067484777,-513.65,0.00023956,2]
[311357911,1705067484790,-500.0,0.00023956,2]
[311357912,1705067484799,-500.0,0.00023956,2]
[311357913,1705067484809,-500.0,0.00023956,2]
[311357914,1705067484819,-500.0,0.00023956,2]
[311357915,1705067484830,-500.0,0.00023956,2]
[311357916,1705067484839,-500.0,0.00023956,2]
[311357917,1705067484849,-500.0,0.00023956,2]
[311357918,1705067484859,-522.55,0.00023956,2]
[311357919,1705067484869,-683.51,0.00023956,2]
[311357920,1705067484878,-500.0,0.00023956,2]
[311357921,1705067484889,-924.0,0.00023956,2]
[311357922,1705067484899,-500.0,0.00023956,2]
[311357923,1705067484909,-500.0,0.00023956,2]
[311357924,1705067484919,-500.0,0.00023956,2]
[311357925,1705067484929,-500.0,0.00023956,2]
[311357926,1705067484938,-677.56,0.00023956,2]
[311357927,1705067484948,-500.0,0.00023956,2]
[311357928,1705067484958,-500.0,0.00023956,2]
[311357929,1705067484967,-500.0,0.00023956,2]
[311357930,1705067484977,-500.0,0.00023956,2]
[311357931,1705067484986,-500.0,0.00023956,2]
[311357932,1705067484996,-500.0,0.00023956,2]
[311357933,1705067485005,-612.68,0.00023956,2]
[311357934,1705067485015,-500.0,0.00023956,2]
[311357935,1705067485025,-500.0,0.00023956,2]
[311357936,1705067485035,-592.6,0.00023956,2]
[311357937,1705067485045,-590.15,0.00023956,2]
[311357938,1705067485054,-500.0,0.00023956,2]
[311357939,1705067485064,-367.94209628,0.00023956,2]
[311357940,1705067485074,-500.0,0.00023956,2]
[311357941,1705067485083,-505.02,0.00023956,2]
[311357942,1705067485093,-500.0,0.00023956,2]
[311357943,1705067485102,-500.0,0.00023956,2]
[311357944,1705067485112,-548.99,0.00023956,2]
[311357945,1705067485123,-500.0,0.00023956,2]
[311357946,1705067485133,-543.6,0.00023956,2]
[311357947,1705067485144,-500.0,0.00023956,2]
[311357948,1705067485154,-632.89,0.00023956,2]
[311357949,1705067485164,-500.0,0.00023956,2]
[311357950,1705067485174,-500.0,0.00023956,2]
[311357951,1705067485306,-500.0,0.00023956,2]
[311357952,1705067485316,-1092.03,0.00023956,2]
[311357953,1705067485326,-710.83,0.00023956,2]
[311357954,1705067485335,-545.64,0.00023956,2]
[311357955,1705067485344,-533.57,0.00023956,2]
[311357956,1705067485354,-500.0,0.00023956,2]
[311357957,1705067485363,-500.0,0.00023956,2]
[311357958,1705067485372,-547.06,0.00023956,2]
[311357959,1705067485381,-1007.67,0.00023956,2]
[311357960,1705067485391,-1191.64,0.00023956,2]
[311357961,1705067485400,-500.0,0.00023956,2]
[311357962,1705067485409,-653.87,0.00023956,2]
[311357963,1705067485418,-500.0,0.00023956,2]
[311357964,1705067485428,-567.05,0.00023956,2]
[311357965,1705067485438,-616.57,0.00023956,2]
[311357966,1705067485449,-920.08,0.00023956,2]
[311357967,1705067485459,-500.0,0.00023956,2]
[311357968,1705067485470,-500.0,0.00023956,2]
[311357969,1705067485480,-500.0,0.00023956,2]
[311357970,1705067485490,-500.0,0.00023956,2]
[311357971,1705067485500,-500.0,0.00023956,2]
[311357972,1705067485510,-500.0,0.00023956,2]
[311357973,1705067485520,-792.43,0.00023956,2]
[311357974,1705067485530,-500.0,0.00023956,2]
[311357975,1705067485543,-500.0,0.00023956,2]
[311357976,1705067485553,-717.68,0.00023956,2]
[311357977,1705067485564,-500.0,0.00023956,2]
[311357978,1705067485573,-615.74,0.00023956,2]
[311357979,1705067485583,-549.71,0.00023956,2]
[311357980,1705067485592,-500.0,0.00023956,2]
[311357981,1705067485600,-533.96,0.00023956,2]
[311357982,1705067485610,-545.26,0.00023956,2]
[311357983,1705067485619,-500.0,0.00023956,2]
[311357984,1705067485629,-500.0,0.00023956,2]
[311357985,1705067485639,-500.0,0.00023956,2]
[311357986,1705067485648,-500.0,0.00023956,2]
[311357987,1705067485657,-526.4,0.00023956,2]
[311357988,1705067485666,-753.76,0.00023956,2]
[311357989,1705067485676,-500.0,0.00023956,2]
[311357990,1705067485686,-500.0,0.00023956,2]
[311357991,1705067485695,-500.0,0.00023956,2]
[311357992,1705067485704,-500.0,0.00023956,2]
[311357993,1705067485714,-568.06,0.00023956,2]
[311357994,1705067485723,-500.0,0.00023956,2]
[311357995,1705067485732,-500.0,0.00023956,2]
[311357996,1705067485742,-500.0,0.00023956,2]
[311357997,1705067485755,-500.0,0.00023956,2]
[311357998,1705067485765,-806.29,0.00023956,2]
[311357999,1705067485774,-210.78247298,0.00023956,2]
[311358000,1705067485785,-500.0,0.00023956,2]
[311358001,1705067485795,-500.0,0.00023956,2]
[311358002,1705067485804,-500.0,0.00023956,2]
[311358003,1705067485813,-500.0,0.00023956,2]
[311358004,1705067485823,-500.0,0.00023956,2]
[311358005,1705067485833,-222.21,0.00023956,2]
[311358006,1705067485843,-500.0,0.00023956,2]
[311358007,1705067485853,-848.08,0.00023956,2]
[311358008,1705067485863,-977.29,0.00023956,2]
[311358009,1705067485873,-500.0,0.00023956,2]
[311358010,1705067485883,-500.0,0.00023956,2]
[311358011,1705067485893,-500.0,0.00023956,2]
[311358012,1705067485903,-500.0,0.00023956,2]
[311358013,1705067485912,-500.0,0.00023956,2]
[311358014,1705067485921,-516.56,0.00023956,2]
[311358015,1705067485930,-300.0,0.00023956,2]
[311358016,1705067485940,-500.0,0.00023956,2]
[311358017,1705067485949,-170.88,0.00023956,2]
[311358018,1705067485959,-500.0,0.00023956,2]
[311358019,1705067485968,-764.31,0.00023956,2]
[311358020,1705067485977,-555.48,0.00023956,2]
[311358021,1705067485987,-500.0,0.00023956,2]
[311358022,1705067485996,-500.0,0.00023956,2]
[311358023,1705067486005,-500.0,0.00023956,2]
[311358024,1705067486015,-675.05,0.00023956,2]
[311358025,1705067486025,-500.0,0.00023956,2]
[311358026,1705067486034,-500.0,0.00023956,2]
[311358027,1705067486044,-500.0,0.00023956,2]
[311358028,1705067486052,-471.05018515,0.00023956,2]
[311358029,1705067486061,-500.0,0.00023956,2]
[311358030,1705067486071,-696.67,0.00023956,2]
[311358031,1705067486080,-500.0,0.00023956,2]
[311358032,1705067486090,-500.0,0.00023956,2]
[311358033,1705067486099,-549.27,0.00023956,2]
[311358034,1705067486109,-537.5,0.00023956,2]
[311358035,1705067486118,-794.27,0.00023956,2]
[311358036,1705067486128,-500.0,0.00023956,2]
[311358037,1705067486140,-1478.94,0.00023956,2]
[311358038,1705067486149,-2259.65,0.00023956,2]
[311358039,1705067486159,-592.72,0.00023956,2]
[311358040,1705067486169,-500.0,0.00023956,2]
[311358041,1705067486180,-500.0,0.00023956,2]
[311358042,1705067486190,-508.59,0.00023956,2]
[311358043,1705067486200,-500.0,0.00023956,2]
[311358044,1705067486210,-500.0,0.00023956,2]
[311358045,1705067486219,-1082.32,0.00023956,2]
[311358046,1705067486230,-5818.98,0.00023956,2]
[311358047,1705067486240,-613.36,0.00023956,2]
[311358048,1705067486250,-240.83837406,0.00023956,2]
[311358049,1705067486260,-500.0,0.00023956,2]
[311358050,1705067486270,-500.0,0.00023956,2]
[311358051,1705067486280,-500.0,0.00023956,2]
[311358052,1705067486291,-291.74597253,0.00023956,2]
[311358053,1705067486301,-500.0,0.00023956,2]
[311358054,1705067486311,-560.75,0.00023956,2]
[311358055,1705067486320,-500.0,0.00023956,2]
[311358056,1705067486330,-501.17,0.00023956,2]
[311358057,1705067486339,-500.0,0.00023956,2]
[311358058,1705067486349,-941.07,0.00023956,2]
[311358059,1705067486358,-568.7,0.00023956,2]
[311358060,1705067486368,-500.0,0.00023956,2]
[311358061,1705067486377,-500.0,0.00023956,2]
[311358062,1705067486387,-610.82,0.00023956,2]
[311358063,1705067486397,-2025.81,0.00023956,2]
[311358064,1705067486408,-627.28,0.00023956,2]
[311358065,1705067486418,-793.23,0.00023956,2]
[311358066,1705067486428,-500.0,0.00023956,2]
[311358067,1705067486438,-500.0,0.00023956,2]
[311358068,1705067486448,-500.0,0.00023956,2]
[311358069,1705067486458,-500.0,0.00023956,2]
[311358070,1705067486469,-500.0,0.00023956,2]
[311358071,1705067486478,-500.0,0.00023956,2]
[311358072,1705067486488,-500.0,0.00023956,2]
[311358073,1705067486498,-500.0,0.00023956,2]
[311358074,1705067486509,-1268.72,0.00023956,2]
[311358075,1705067486519,-500.0,0.00023956,2]
[311358076,1705067486529,-3058.91,0.00023956,2]
[311358077,1705067486541,-500.0,0.00023956,2]
[311358078,1705067486552,-645.36,0.00023956,2]
[311358079,1705067486563,-500.0,0.00023956,2]
[311358080,1705067486573,-500.0,0.00023956,2]
[311358081,1705067486584,-594.49,0.00023956,2]
[311358082,1705067486593,-500.0,0.00023956,2]
[311358083,1705067486604,-500.0,0.00023956,2]
[311358084,1705067486614,-523.76,0.00023956,2]
[311358085,1705067486624,-967.54,0.00023956,2]
[311358086,1705067486634,-500.0,0.00023956,2]
[311358087,1705067486644,-698.09,0.00023956,2]
[311358088,1705067486654,-561.62550457,0.00023956,2]
[311358089,1705067486664,-1774.52,0.00023956,2]
[311358090,1705067486673,-500.0,0.00023956,2]
[311358091,1705067486683,-500.0,0.00023956,2]
[311358092,1705067486693,-672.72,0.00023956,2]
[311358093,1705067486703,-1366.67,0.00023956,2]
[311358094,1705067486713,-640.24,0.00023956,2]
[311358095,1705067486722,-650.29,0.00023956,2]
[311358096,1705067486732,-1109.5,0.00023956,2]
[311358097,1705067486741,-653.12,0.00023956,2]
[311358098,1705067486751,-500.0,0.00023956,2]
[311358099,1705067486760,-2402.79,0.00023956,2]
[311358100,1705067486771,-500.0,0.00023956,2]
[311358101,1705067486780,-500.0,0.00023956,2]
[311358102,1705067486792,-500.0,0.00023956,2]
[311358103,1705067486802,-682.08,0.00023956,2]
[311358104,1705067486812,-2173.55,0.00023956,2]
[311358105,1705067486821,-604.31,0.00023956,2]
[311358106,1705067486831,-500.0,0.00023956,2]
[311358107,1705067486841,-1581.39,0.00023956,2]
[311358108,1705067486850,-500.0,0.00023956,2]
[311358109,1705067486860,-500.0,0.00023956,2]
[311358110,1705067486870,-1124.99,0.00023956,2]
[311358111,1705067486879,-500.0,0.00023956,2]
[311358112,1705067486889,-500.0,0.00023956,2]
[311358113,1705067486899,-619.21,0.00023956,2]
[311358114,1705067486909,-500.0,0.00023956,2]
[311358115,1705067486918,-500.0,0.00023956,2]
[311358116,1705067486927,-1172.6,0.00023956,2]
[311358117,1705067486937,-173.11,0.00023956,2]
[311358118,1705067486946,-613.44,0.00023956,2]
[311358119,1705067486956,-843.5,0.00023956,2]
[311358120,1705067486965,-500.0,0.00023956,2]
[311358121,1705067486975,-752.62,0.00023956,2]
[311358122,1705067486985,-500.0,0.00023956,2]
[311358123,1705067486995,-500.0,0.00023956,2]
[311358124,1705067487005,-1338.76,0.00023956,2]
[311358125,1705067487015,-570.42,0.00023956,2]
[311358126,1705067487025,-500.0,0.00023956,2]
[311358127,1705067487034,-506.47,0.00023956,2]
[311358128,1705067487045,-2558.46,0.00023956,2]
[311358129,1705067487054,-500.0,0.00023956,2]
[311358130,1705067487064,-500.0,0.00023956,2]
[311358131,1705067487074,-778.89,0.00023956,2]
[311358132,1705067487084,-500.0,0.00023956,2]
[311358133,1705067487093,-608.12,0.00023956,2]
[311358134,1705067487107,-500.0,0.00023956,2]
[311358135,1705067487117,-761.66,0.00023956,2]
[311358136,1705067487127,-500.0,0.00023956,2]
[311358137,1705067487137,-500.0,0.00023956,2]
[311358138,1705067487148,-606.09,0.00023956,2]
[311358139,1705067487159,-2321.31,0.00023956,2]
[311358140,1705067487169,-503.85,0.00023956,2]
[311358141,1705067487180,-792.73,0.00023956,2]
[311358142,1705067487191,-505.57,0.00023956,2]
[311358143,1705067487200,-986.73,0.00023956,2]
[311358144,1705067487210,-500.0,0.00023956,2]
[311358145,1705067487220,-500.0,0.00023956,2]
[311358146,1705067487232,-1855.62,0.00023956,2]
[311358147,1705067487242,-500.0,0.00023956,2]
[311358148,1705067487252,-500.0,0.00023956,2]
[311358149,1705067487262,-544.3,0.00023956,2]
[311358150,1705067487271,-500.0,0.00023956,2]
[311358151,1705067487281,-922.23,0.00023956,2]
[311358152,1705067487291,-500.0,0.00023956,2]
[311358153,1705067487301,-855.09,0.00023956,2]
[311358154,1705067487310,-1739.46,0.00023956,2]
[311358155,1705067487320,-539.44,0.00023956,2]
[311358156,1705067487330,-500.0,0.00023956,2]
[311358157,1705067487340,-500.0,0.00023956,2]
[311358158,1705067487350,-628.22,0.00023956,2]
[311358159,1705067487360,-500.0,0.00023956,2]
[311358160,1705067487369,-564.76,0.00023956,2]
[311358161,1705067487380,-500.0,0.00023956,2]
[311358162,1705067487389,-500.0,0.00023956,2]
[311358163,1705067487399,-500.0,0.00023956,2]
[311358164,1705067487408,-552.38856986,0.00023956,2]
[311358165,1705067487419,-500.0,0.00023956,2]
[311358166,1705067487429,-5795.35,0.00023956,2]
[311358167,1705067487439,-500.0,0.00023956,2]
[311358168,1705067487449,-500.0,0.00023956,2]
[311358169,1705067487459,-500.0,0.00023956,2]
[311358170,1705067487469,-500.0,0.00023956,2]
[311358171,1705067487479,-518.54,0.00023956,2]
[311358172,1705067487489,-577.35,0.00023956,2]
[311358173,1705067487499,-500.0,0.00023957,2]
[311358174,1705067487508,-506.82,0.00023957,2]
[311358175,1705067487518,-898.46,0.00023957,2]
[311358176,1705067487528,-689.65,0.00023957,2]
[311358177,1705067487537,-689.5,0.00023957,2]
[311358178,1705067487547,-544.38,0.00023957,2]
[311358179,1705067487557,-517.93,0.00023957,2]
[311358180,1705067487566,-500.0,0.00023957,2]
[311358181,1705067487576,-500.0,0.00023957,2]
[311358182,1705067487585,-603.88,0.00023957,2]
[311358183,1705067487595,-500.0,0.00023957,2]
[311358184,1705067487605,-807.14,0.00023957,2]
[311358185,1705067487614,-500.0,0.00023957,2]
[311358186,1705067487624,-763.57,0.00023957,2]
[311358187,1705067487633,-500.0,0.00023957,2]
[311358188,1705067487643,-500.0,0.00023957,2]
[311358189,1705067487653,-500.0,0.00023957,2]
[311358190,1705067487663,-881.83,0.00023957,2]
[311358191,1705067487673,-500.0,0.00023957,2]
[311358192,1705067487683,-500.0,0.00023957,2]
[311358193,1705067487693,-547.66,0.00023957,2]
[311358194,1705067487703,-717.02,0.00023957,2]
[311358195,1705067487714,-500.0,0.00023957,2]
[311358196,1705067487724,-500.0,0.00023957,2]
[311358197,1705067487733,-588.39,0.00023957,2]
[311358198,1705067487743,-518.49,0.00023959,2]
[311358199,1705067487752,-500.0,0.00023959,2]
[311358200,1705067487761,-543.83,0.00023959,2]
[311358201,1705067487771,-500.0,0.00023959,2]
[311358202,1705067487781,-500.0,0.00023959,2]
[311358203,1705067487792,-500.0,0.00023959,2]
[311358204,1705067487802,-500.0,0.00023959,2]
[311358205,1705067487812,-500.0,0.00023959,2]
[311358206,1705067487821,-500.0,0.00023959,2]
[311358207,1705067487830,-500.0,0.00023959,2]
[311358208,1705067487839,-500.0,0.00023959,2]
[311358209,1705067487849,-500.0,0.00023959,2]
[311358210,1705067487859,-500.0,0.00023959,2]
[311358211,1705067487868,-500.0,0.00023959,2]
[311358212,1705067487877,-500.0,0.00023959,2]
[311358213,1705067487887,-435.36664987,0.00024,2]
[311358214,1705067487896,-4667.32773381,0.00024104,2]
[311358215,1705067487906,-2000.0,0.00024117,2]
[311358216,1705067487915,-200.0,0.00024117,2]
[311358217,1705067487924,-2000.0,0.00024117,2]
[311358218,1705067487934,-318.81158901,0.00024229,2]
[311358219,1705067487944,-500.0,0.00024229,2]
[311358220,1705067487953,-500.0,0.00024229,2]
[311358221,1705067487964,-500.0,0.00024229,2]
[311358222,1705067487974,-500.0,0.00024229,2]
[311358223,1705067487984,-500.0,0.00024229,2]
[311358224,1705067487994,-500.0,0.00024229,2]
[311358225,1705067488004,-500.0,0.00024229,2]
[311358226,1705067488014,-500.0,0.00024229,2]
[311358227,1705067488025,-500.0,0.00024229,2]
[311358228,1705067488035,-500.0,0.00024229,2]
[311358229,1705067488046,-500.0,0.00024229,2]
[311358230,1705067488056,-500.0,0.00024229,2]
[311358231,1705067488067,-533.9608496,0.00024229,2]
[311358232,1705067488077,-500.0,0.00024229,2]
[311358233,1705067488087,-500.0,0.00024229,2]
[311358234,1705067488096,-500.0,0.00024229,2]
[311358235,1705067488106,-500.0,0.00024229,2]
[311358236,1705067488116,-460.0561016,0.00024229,2]
[311358237,1705067488127,-505.4,0.00024229,2]
[311358238,1705067488140,-500.0,0.00024229,2]
[311358239,1705067488150,-500.0,0.00024229,2]
[311358240,1705067488161,-341.44,0.00024229,2]
[311358241,1705067488172,-1250.65,0.00024229,2]
[311358242,1705067488183,-500.0,0.00024229,2]
[311358243,1705067488193,-500.0,0.00024229,2]
[311358244,1705067488204,-7981.48,0.00024229,2]
[311358245,1705067488215,-500.0,0.00024229,2]
[311358246,1705067488227,-535.31,0.00024229,2]
[311358247,1705067488237,-1261.36,0.00024229,2]
[311358248,1705067488247,-8984.16,0.00024229,2]
[311358249,1705067488257,-1671.94,0.00024229,2]
[311358250,1705067488268,-3195.18,0.00024229,2]
[311358251,1705067488279,-500.0,0.00024229,2]
[311358252,1705067488290,-12299.66,0.00024229,2]
[311358253,1705067488301,-1110.57,0.00024229,2]
[311358254,1705067488311,-630.64,0.00024229,2]
[311358255,1705067488322,-500.0,0.00024229,2]
[311358256,1705067488332,-3123.71,0.00024229,2]
[311358257,1705067488342,-500.0,0.00024229,2]
[311358258,1705067488351,-500.0,0.00024229,2]
[311358259,1705067488362,-882.43,0.00024229,2]
[311358260,1705067488373,-2779.34,0.00024229,2]